bitfinex/quotes_BTCUSD_20250316
["timestamp","ask_amount","ask_price","bid_price","bid_amount"]
[1742160807345,1.0049071,83024.0,83023.0,0.00237967]
[1742160807761,1.0049071,83024.0,83023.0,0.00137967]
[1742160808178,0.204821,82999.0,82998.0,0.01109963]
[1742160808350,0.51384864,82999.0,82998.0,0.01122328]
[1742160808582,0.51922713,82999.0,82998.0,0.01122328]
[1742160809375,0.81922713,82999.0,82998.0,0.01122328]
[1742160809586,0.82022713,82999.0,82998.0,0.01122328]
[1742160810418,0.84011214,82999.0,82998.0,0.01122328]
[1742160810987,0.83911214,82999.0,82998.0,0.01122328]
[1742160811196,0.83811214,82999.0,82998.0,0.01122328]
[1742160811398,0.85250914,82999.0,82998.0,0.01122328]
[1742160811622,0.83362413,82999.0,82998.0,0.01122328]
[1742160816026,0.85250914,82999.0,82998.0,0.01122328]
[1742160817349,0.83362413,82999.0,82998.0,0.01122328]
[1742160818559,0.83362413,82999.0,82998.0,0.01139248]
[1742160819883,0.68144313,82999.0,82998.0,0.01139248]
[1742160820089,0.69349113,82999.0,82998.0,0.01139248]
[1742160820691,0.69249113,82999.0,82998.0,0.01139248]
[1742160821030,0.69149113,82999.0,82998.0,0.01139248]
[1742160824124,0.55605113,82999.0,82998.0,0.01139248]
[1742160824381,0.57493592,82999.0,82998.0,0.01139248]
[1742160831452,0.70653592,82999.0,82998.0,0.01139248]
[1742160832830,0.70853592,82999.0,82998.0,0.01139248]
[1742160833414,0.70753592,82999.0,82998.0,0.01139248]
[1742160833781,0.70853592,82999.0,82998.0,0.01139248]
[1742160834901,0.68965113,82999.0,82998.0,0.01139248]
[1742160837155,0.53360613,82999.0,82998.0,0.21621548]
[1742160837394,0.23360613,82999.0,82998.0,0.21621548]
[1742160837857,0.23360613,82999.0,82998.0,0.26621548]
[1742160838108,0.00637849,82999.0,82998.0,0.34381548]
[1742160838566,0.02352316,82999.0,82998.0,0.35570918]
[1742160838698,0.02252316,82999.0,82998.0,0.35570918]
[1742160839801,0.02252316,82999.0,82998.0,0.49114918]
[1742160840701,0.02252316,82999.0,82998.0,1.99114918]
[1742160841384,0.02352316,82999.0,82998.0,1.99114918]
[1742160841641,0.02352316,82999.0,82998.0,1.97925548]
[1742160842571,0.02452316,82999.0,82998.0,1.98125548]
[1742160843117,0.02452316,82999.0,82998.0,0.48125548]
[1742160843552,0.02352316,82999.0,82998.0,0.47925548]
[1742160844863,0.02252316,82999.0,82998.0,0.47925548]
[1742160845040,0.02352316,82999.0,82998.0,0.48125548]
[1742160845247,0.02352316,82999.0,82998.0,0.48425548]
[1742160845588,0.02352316,82999.0,82998.0,0.49634294]
[1742160850104,0.02352316,82999.0,82998.0,1.99634294]
[1742160851359,0.02352316,82999.0,82998.0,1.99630294]
[1742160853329,0.02352316,82999.0,82998.0,0.49630294]
[1742160853842,0.02352316,82999.0,82998.0,1.99630294]
[1742160854390,0.02352316,82999.0,82998.0,1.98421548]
[1742160855316,0.02352316,82999.0,82998.0,1.99640078]
[1742160856759,0.02352316,82999.0,82998.0,0.49640078]
[1742160857267,0.02352316,82999.0,82998.0,1.99640078]
[1742160862441,1.6e-07,82999.0,82998.0,1.99640078]
[1742160862641,1.6e-07,82999.0,82998.0,2.04340078]
[1742160863493,1.6e-07,82999.0,82998.0,2.17751666]
[1742160863613,1.6e-07,82999.0,82998.0,2.47451666]
[1742160863827,0.0827,83035.0,83020.0,0.203769]
[1742160864229,0.0926749,83035.0,83020.0,0.203769]
[1742160864622,0.0926749,83035.0,83020.0,1.703769]
[1742160864826,4e-07,83021.0,83020.0,1.706769]
[1742160865730,4e-07,83021.0,83020.0,1.708769]
[1742160866144,4e-07,83021.0,83020.0,1.712769]
[1742160867649,4e-07,83021.0,83020.0,1.707769]
[1742160867878,4e-07,83021.0,83020.0,1.712769]
[1742160868661,4e-07,83021.0,83020.0,1.707769]
[1742160868857,4e-07,83021.0,83020.0,1.73382497]
[1742160869216,4e-07,83021.0,83020.0,1.73982497]
[1742160869420,4e-07,83021.0,83020.0,0.23982497]
[1742160869601,4e-07,83021.0,83020.0,0.012]
[1742160869602,0.0120454,83021.0,83020.0,0.012]
[1742160870057,0.09904283,83021.0,83020.0,0.012]
[1742160870489,0.09904283,83021.0,83020.0,0.006]
[1742160870714,0.09904283,83021.0,83010.0,0.13888578]
[1742160870715,0.19274,83014.0,83010.0,0.13888578]
[1742160870886,0.204786,83014.0,83008.0,0.012047]
[1742160871049,0.01633218,83013.0,83008.0,0.012047]
[1742160871453,0.01633218,83013.0,83008.0,0.204797]
[1742160871893,0.00428618,83013.0,83009.0,0.19275]
[1742160872270,0.012046,83015.0,83009.0,0.19275]
[1742160872476,0.00428618,83012.0,83009.0,0.204796]
[1742160872675,0.012046,83011.0,82999.0,0.03635991]
[1742160872854,0.012046,83009.0,83001.0,0.192768]
[1742160873056,0.204799,83008.0,83003.0,0.192763]
[1742160873284,0.00428618,83008.0,83003.0,0.20481]
[1742160873600,0.204806,83005.0,82999.0,0.02431191]
[1742160873836,0.012047,83008.0,83003.0,0.192763]
[1742160874054,0.00428618,83004.0,83003.0,0.20481]
[1742160874215,0.204796,83009.0,83003.0,0.20481]
[1742160874410,0.00428618,83004.0,83003.0,0.20481]
[1742160874633,0.204797,83009.0,83003.0,0.20581]
[1742160874843,0.00428618,83004.0,83003.0,0.20581]
[1742160875070,0.204797,83009.0,83003.0,0.20581]
[1742160875298,0.00428346,83004.0,83003.0,0.001]
[1742160875474,0.204797,83009.0,83003.0,0.205811]
[1742160875696,0.204797,83009.0,83003.0,0.208811]
[1742160875697,0.00428346,83004.0,83003.0,0.208811]
[1742160875990,0.01888115,83008.0,83003.0,0.207811]
[1742160876204,0.00428346,83004.0,83003.0,0.208811]
[1742160876422,0.01888115,83008.0,83003.0,0.208811]
[1742160876594,0.00428346,83004.0,83003.0,0.207811]
[1742160876795,0.00428346,83004.0,83003.0,0.005]
[1742160876954,0.03092815,83008.0,83003.0,0.014047]
[1742160877296,0.01888115,83008.0,83003.0,0.20781]
[1742160877496,0.00428346,83007.0,83003.0,0.20781]
[1742160877710,0.00428346,83007.0,83005.0,0.192759]
[1742160878938,0.058446,83010.0,83005.0,0.002]
[1742160879145,0.00428346,83006.0,83005.0,0.002]
[1742160879322,0.204796,83009.0,83005.0,0.002]
[1742160879525,0.00428346,83006.0,83005.0,0.002]
[1742160879812,0.00428346,83006.0,83005.0,0.014047]
[1742160880037,0.058446,83010.0,83005.0,0.014047]
[1742160880226,0.00428346,83006.0,83005.0,0.012047]
[1742160880428,0.058446,83010.0,83005.0,0.012047]
[1742160880638,0.00428346,83006.0,83005.0,0.013047]
[1742160880841,0.19275,83009.0,83005.0,0.001]
[1742160881019,0.00427322,83006.0,83004.0,0.012047]
[1742160881219,0.19275,83009.0,83005.0,0.001]
[1742160881836,0.02245245,83008.0,83005.0,0.001]
[1742160882135,0.02245245,83008.0,83004.0,0.012047]
[1742160882812,0.02245245,83008.0,83003.0,0.204808]
[1742160882813,0.03449945,83008.0,83003.0,0.204808]
[1742160883111,0.02245245,83007.0,83005.0,0.001]
[1742160883940,0.02245245,83007.0,83003.0,0.204808]
[1742160884234,0.02245245,83006.0,83005.0,0.002]
[1742160884919,0.02245245,83006.0,83003.0,0.205808]
[1742160885275,0.02245245,83006.0,83003.0,0.207808]
[1742160885480,0.0832,83005.0,83003.0,0.195761]
[1742160885665,0.0832,83005.0,83003.0,0.002]
[1742160886010,0.21521345,83004.0,83003.0,0.002]
[1742160886211,0.22726045,83004.0,83003.0,0.002]
[1742160886918,0.22726045,83004.0,83001.0,0.0001692]
[1742160887301,0.012047,83003.0,83001.0,0.0001692]
[1742160887940,0.204813,83002.0,83001.0,0.0001692]
[1742160888138,0.73681948,83002.0,83001.0,0.0001692]
[1742160888336,0.68531342,83002.0,83001.0,0.0001692]
[1742160888760,0.70776587,83002.0,83001.0,0.0001692]
[1742160889230,0.83506587,83002.0,83001.0,0.0001692]
[1742160890048,0.83506587,83002.0,83001.0,0.0011692]
[1742160890448,0.83506587,83002.0,83001.0,0.0001692]
[1742160890792,0.83806587,83002.0,83001.0,0.0001692]
[1742160891640,0.85695098,83002.0,83001.0,0.0001692]
[1742160892060,0.87949183,83002.0,83001.0,0.0001692]
[1742160897667,0.012048,82999.0,82998.0,0.01139248]
[1742160897853,0.527448,82999.0,82998.0,0.01139248]
[1742160898181,0.53170146,82999.0,82998.0,0.01139248]
[1742160899232,0.53770146,82999.0,82998.0,0.01139248]
[1742160902013,0.55658714,82999.0,82998.0,0.01139248]
[1742160903116,0.53770146,82999.0,82998.0,0.01139248]
[1742160903527,0.7637599,82999.0,82998.0,0.01139248]
[1742160909052,0.7587599,82999.0,82998.0,0.01139248]
[1742160910411,0.77764561,82999.0,82998.0,0.01139248]
[1742160910794,0.26224561,82999.0,82998.0,0.01139248]
[1742160910944,0.25519761,82999.0,82998.0,0.01139248]
[1742160911486,0.2363119,82999.0,82998.0,0.01139248]
[1742160911944,0.2363119,82999.0,82998.0,0.20416748]
[1742160912266,0.2333119,82999.0,82998.0,0.01139248]
[1742160912442,0.2303119,82999.0,82998.0,0.01139248]
[1742160912643,0.28869618,82999.0,82998.0,0.01139248]
[1742160912870,0.29069618,82999.0,82998.0,0.01139248]
[1742160913283,0.29269618,82999.0,82998.0,0.01139248]
[1742160914457,0.31158052,82999.0,82998.0,0.01139248]
[1742160914633,0.32362852,82999.0,82998.0,0.01139248]
[1742160915060,0.31158052,82999.0,82998.0,0.01139248]
[1742160915806,0.31761801,82999.0,82998.0,0.01139248]
[1742160916030,0.31761801,82999.0,82998.0,0.04139248]
[1742160918816,0.51039101,82999.0,82998.0,0.04139248]
[1742160918990,0.50355467,82999.0,82998.0,0.04139248]
[1742160920021,0.49150667,82999.0,82998.0,0.04139248]
[1742160922342,0.51039107,82999.0,82998.0,0.04139248]
[1742160922871,0.51072947,82999.0,82998.0,0.04139248]
[1742160925574,0.52277747,82999.0,82998.0,0.04139248]
[1742160926392,0.31795647,82999.0,82998.0,0.04139248]
[1742160926815,0.51072947,82999.0,82998.0,0.04139248]
[1742160927987,0.31795647,82999.0,82998.0,0.04139248]
[1742160932512,0.31795647,82999.0,82998.0,0.05344048]
[1742160938618,0.07301363,82999.0,82998.0,1.62874048]
[1742160938998,0.06876017,82999.0,82998.0,1.62874048]
[1742160939359,0.06676017,82999.0,82998.0,1.62874048]
[1742160939564,0.06476017,82999.0,82998.0,1.62874048]
[1742160939722,0.06676017,82999.0,82998.0,1.67554048]
[1742160939908,0.03083138,82999.0,82998.0,1.67754048]
[1742160940108,0.02883138,82999.0,82998.0,1.67754048]
[1742160940461,0.02279389,82999.0,82998.0,1.68054048]
[1742160940761,0.0003384,82999.0,82998.0,1.67854048]
[1742160940960,0.0003384,82999.0,82998.0,1.67554048]
[1742160941322,0.0003384,82999.0,82998.0,1.67954048]
[1742160941519,0.0003384,82999.0,82998.0,1.7039181]
[1742160942226,0.0003384,82999.0,82998.0,1.7069181]
[1742160942794,0.0003384,82999.0,82998.0,1.7029181]
[1742160942988,0.0003384,82999.0,82998.0,1.6999181]
[1742160943190,0.0003384,82999.0,82998.0,1.7049181]
[1742160943399,0.0003384,82999.0,82998.0,1.7089181]
[1742160943593,0.0003384,82999.0,82998.0,1.7049181]
[1742160943911,0.0003384,82999.0,82998.0,1.6789181]
[1742160944217,0.0003384,82999.0,82998.0,1.6839181]
[1742160945180,0.0003384,82999.0,82998.0,1.9839181]
[1742160945592,0.0003384,82999.0,82998.0,1.99845895]
[1742160946216,4e-07,82999.0,82998.0,1.99845895]
[1742160946599,4e-07,82999.0,82998.0,1.98945895]
[1742160946801,4e-07,82999.0,82998.0,1.99545895]
[1742160947003,8e-07,83001.0,83000.0,0.45108885]
[1742160947204,8e-07,83001.0,83000.0,0.70206388]
[1742160947412,4e-07,83021.0,83020.0,0.329269]
[1742160947685,4e-07,83021.0,83020.0,0.47912985]
[1742160947884,4e-07,83021.0,83020.0,1.97912985]
[1742160949599,4e-07,83021.0,83020.0,2.10270488]
[1742160949802,4e-07,83021.0,83020.0,2.40270488]
[1742160950749,4e-07,83021.0,83020.0,2.41674289]
[1742160951969,4e-07,83021.0,83020.0,2.44138017]
[1742160952509,4e-07,83021.0,83020.0,2.56778017]
[1742160952710,4e-07,83021.0,83020.0,2.56378017]
[1742160953312,4e-07,83021.0,83020.0,2.56978017]
[1742160954331,4e-07,83021.0,83020.0,2.56378017]
[1742160954539,4e-07,83021.0,83020.0,2.56978017]
[1742160954734,4e-07,83021.0,83020.0,2.56478017]
[1742160955201,4e-07,83021.0,83020.0,2.57078017]
[1742160956187,4e-07,83021.0,83020.0,2.56478017]
[1742160956388,4e-07,83021.0,83020.0,2.57078017]
[1742160961256,0.00495062,83040.0,83039.0,0.204722]
[1742160961467,0.00495062,83040.0,83039.0,0.340002]
[1742160962046,0.00495062,83040.0,83039.0,1.840002]
[1742160962806,0.00495062,83040.0,83039.0,1.842002]
[1742160963755,0.00495062,83040.0,83039.0,1.85639505]
[1742160964135,0.00495062,83040.0,83039.0,1.85439505]
[1742160964852,0.00495062,83040.0,83039.0,1.85239505]
[1742160965025,0.00495062,83040.0,83039.0,1.85939505]
[1742160970589,0.00495062,83040.0,83039.0,1.88292548]
[1742160971537,0.00495062,83040.0,83039.0,1.74764548]
[1742160971790,0.00495062,83040.0,83039.0,1.88288548]
[1742160976331,0.00495062,83040.0,83039.0,1.88272848]
[1742160980040,0.02743908,83040.0,83039.0,1.88272848]
[1742160982229,0.02743908,83040.0,83039.0,1.74748848]
[1742160982440,0.02743908,83040.0,83039.0,0.007]
[1742160982441,0.16908108,83040.0,83039.0,0.007]
[1742160982672,0.18132326,83040.0,83039.0,0.007]
[1742160982792,0.41157268,83040.0,83039.0,0.007]
[1742160983194,0.41157268,83040.0,83039.0,0.003]
[1742160983401,0.41157268,83040.0,83039.0,0.006]
[1742160983674,0.41157268,83040.0,83039.0,0.0061691]
[1742160984304,0.41157268,83040.0,83039.0,0.0031691]
[1742160984506,0.1296,83026.0,83022.0,0.19272]
[1742160984712,0.35565844,83026.0,83022.0,0.19272]
[1742160984915,0.19272,83022.0,83021.0,4.12e-05]
[1742160985114,0.586765,83022.0,83021.0,4.12e-05]
[1742160985321,0.81282344,83022.0,83021.0,4.12e-05]
[1742160985455,0.81697322,83022.0,83021.0,4.12e-05]
[1742160985906,0.83585302,83022.0,83021.0,4.12e-05]
[1742160986714,0.85834148,83022.0,83021.0,4.12e-05]
[1742160986932,0.83946168,83022.0,83021.0,4.12e-05]
[1742160987547,0.83946168,83022.0,83021.0,0.0010412]
[1742160988166,0.83946168,83022.0,83021.0,0.0020412]
[1742160989407,0.83946168,83022.0,83021.0,0.0010412]
[1742160989740,0.84046168,83022.0,83021.0,0.0010412]
[1742160990602,0.84046168,83022.0,83021.0,4.12e-05]
[1742160994544,0.85934198,83022.0,83021.0,4.12e-05]
[1742160996693,0.85934198,83022.0,83021.0,0.0002103]
[1742161001216,0.87888283,83022.0,83021.0,0.0002103]
[1742161001440,0.92798283,83022.0,83021.0,0.0002103]
[1742161001560,0.90910253,83022.0,83021.0,0.0002103]
[1742161001986,0.93354525,83022.0,83021.0,0.0002103]
[1742161002413,0.93254525,83022.0,83021.0,0.0002103]
[1742161002848,1.05212028,83022.0,83021.0,0.0002103]
[1742161003195,1.05212028,83022.0,82998.0,0.01656168]
[1742161003196,0.335621,82999.0,82998.0,0.01656168]
[1742161003413,0.56562458,82999.0,82998.0,0.01668572]
[1742161004032,0.58811304,82999.0,82998.0,0.01668572]
[1742161004695,0.58911304,82999.0,82998.0,0.01668572]
[1742161004846,0.60799778,82999.0,82998.0,0.01668572]
[1742161005032,0.90799778,82999.0,82998.0,0.01668572]
[1742161006306,0.92002218,82999.0,82998.0,0.01668572]
[1742161006499,0.90113744,82999.0,82998.0,0.01668572]
[1742161009773,0.92002239,82999.0,82998.0,0.01668572]
[1742161010768,0.90113744,82999.0,82998.0,0.01668572]
[1742161015071,0.92002241,82999.0,82998.0,0.01668572]
[1742161017117,0.26551644,82999.0,82998.0,0.01668572]
[1742161017319,0.26551644,82999.0,82998.0,0.02873372]
[1742161017446,0.26551644,82999.0,82998.0,0.22150872]
[1742161017657,0.2614019,82999.0,82998.0,0.22150872]
[1742161018485,0.2604019,82999.0,82998.0,0.22150872]
[1742161018841,0.2624019,82999.0,82998.0,0.22150872]
[1742161020087,0.28128523,82999.0,82998.0,0.22150872]
[1742161020658,0.28536964,82999.0,82998.0,0.22150872]
[1742161021064,0.26648631,82999.0,82998.0,0.22150872]
[1742161021584,0.25446191,82999.0,82998.0,0.22150872]
[1742161023590,0.44723491,82999.0,82998.0,0.01668572]
[1742161023797,0.54238291,82999.0,82998.0,0.01668572]
[1742161023989,0.67794291,82999.0,82998.0,0.01668572]
[1742161024195,0.97794291,82999.0,82998.0,0.01668572]
[1742161024589,0.99682769,82999.0,82998.0,0.01668572]
[1742161024793,1.00898635,82999.0,82998.0,0.01668572]
[1742161026318,0.99010157,82999.0,82998.0,0.01668572]
[1742161028203,0.99010157,82999.0,82998.0,0.00463249]
[1742161029507,1.0089868,82999.0,82998.0,0.00463249]
[1742161030501,0.99010157,82999.0,82998.0,0.00463249]
[1742161033293,0.98910157,82999.0,82998.0,0.00463249]
[1742161033612,1.00898717,82999.0,82998.0,0.00463249]
[1742161033969,1.01098717,82999.0,82998.0,0.00463249]
[1742161035408,0.92764717,82999.0,82998.0,0.00463249]
[1742161037914,0.26862057,82999.0,82998.0,0.01668049]
[1742161038115,0.26862057,82999.0,82998.0,0.00463249]
[1742161038294,0.28066857,82999.0,82998.0,0.00463249]
[1742161038946,0.28670641,82999.0,82998.0,0.00463249]
[1742161039147,0.27465841,82999.0,82998.0,0.00463249]
[1742161039489,0.28670641,82999.0,82998.0,0.00463249]
[1742161039694,0.32268102,82999.0,82998.0,0.00463249]
[1742161041470,0.34156527,82999.0,82998.0,0.00463249]
[1742161042046,0.32940661,82999.0,82998.0,0.00463249]
[1742161042604,0.31052236,82999.0,82998.0,0.00463249]
[1742161044460,0.29847436,82999.0,82998.0,0.01668049]
[1742161044659,0.29847436,82999.0,82998.0,0.00463249]
[1742161044871,0.31052236,82999.0,82998.0,0.00463249]
[1742161045072,0.29847436,82999.0,82998.0,0.00463249]
[1742161045281,0.29881276,82999.0,82998.0,0.00463249]
[1742161045532,0.31769697,82999.0,82998.0,0.00463249]
[1742161045689,0.31769697,82999.0,82998.0,0.20945549]
[1742161045889,0.31769697,82999.0,82998.0,0.00463249]
[1742161048583,0.29881276,82999.0,82998.0,0.00463249]
[1742161048998,0.50363376,82999.0,82998.0,0.00463249]
[1742161052125,0.52251814,82999.0,82998.0,0.00463249]
[1742161053152,0.50363376,82999.0,82998.0,0.00463249]
[1742161056198,0.52251825,82999.0,82998.0,0.00463249]
[1742161057142,0.92943376,82999.0,82998.0,0.00463249]
[1742161057776,0.92943376,82999.0,82998.0,0.00110426]
[1742161057979,0.204834,82994.0,82993.0,0.0003386]
[1742161058193,0.26737734,82994.0,82993.0,0.0003386]
[1742161058921,0.49326638,82994.0,82993.0,0.0003386]
[1742161059465,0.49726638,82994.0,82993.0,0.0003386]
[1742161059972,0.79726638,82994.0,82993.0,0.0003386]
[1742161060305,0.80026638,82994.0,82993.0,0.0003386]
[1742161060530,0.81915287,82994.0,82993.0,0.0003386]
[1742161067446,0.82804948,82994.0,82993.0,0.0003386]
[1742161068595,0.204838,82992.0,82991.0,0.00029485]
[1742161068993,0.20891827,82992.0,82991.0,0.00029485]
[1742161069859,0.26738134,82992.0,82991.0,0.00029485]
[1742161070099,0.27038134,82992.0,82991.0,0.00029485]
[1742161070819,0.49627038,82992.0,82991.0,0.00029485]
[1742161070953,0.49927038,82992.0,82991.0,0.00029485]
[1742161072764,0.46329577,82992.0,82991.0,0.00029485]
[1742161074044,0.48218157,82992.0,82991.0,0.00029485]
[1742161078291,0.46329577,82992.0,82991.0,0.00029485]
[1742161080060,0.46329577,82992.0,82991.0,0.00046405]
[1742161081977,0.54439577,82992.0,82991.0,0.00046405]
[1742161082786,0.48218202,82992.0,82991.0,0.00046405]
[1742161088906,0.48218202,82992.0,82991.0,0.02046405]
[1742161091442,0.53038202,82992.0,82991.0,0.02046405]
[1742161092196,0.53072042,82992.0,82991.0,0.02046405]
[1742161103312,0.50823196,82992.0,82991.0,0.02046405]
[1742161108869,0.59143196,82992.0,82991.0,0.02046405]
[1742161109098,0.89143196,82992.0,82991.0,0.02046405]
[1742161109751,0.88843196,82992.0,82991.0,0.02046405]
[1742161110159,0.89243196,82992.0,82991.0,0.02046405]
[1742161110561,0.88843196,82992.0,82991.0,0.02046405]
[1742161110960,0.88943196,82992.0,82991.0,0.02046405]
[1742161111369,0.89243196,82992.0,82991.0,0.02046405]
[1742161113376,0.87354571,82992.0,82991.0,0.02046405]
[1742161114759,1.00886571,82992.0,82991.0,0.02046405]
[1742161116627,1.02775324,82992.0,82991.0,0.02046405]
[1742161117456,0.89243324,82992.0,82991.0,0.02046405]
[1742161117822,0.87746571,82992.0,82991.0,0.02046405]
[1742161121078,0.89635315,82992.0,82991.0,0.02046405]
[1742161127687,1.02395315,82992.0,82991.0,0.02046405]
[1742161128317,0.192882,82952.0,82951.0,0.00033873]
[1742161128518,0.7263226,82952.0,82951.0,0.00033873]
[1742161128720,0.65114345,82952.0,82951.0,0.00033873]
[1742161128921,0.79190345,82952.0,82951.0,0.00033873]
[1742161129121,0.79664493,82952.0,82951.0,0.00033873]
[1742161129471,0.81118578,82952.0,82951.0,0.00033873]
[1742161130037,0.81128,82952.0,82951.0,0.00033873]
[1742161130247,0.81528,82952.0,82951.0,0.00033873]
[1742161130627,0.81928,82952.0,82951.0,0.00033873]
[1742161131673,0.65289682,82952.0,82951.0,0.00033873]
[1742161132436,0.87478586,82952.0,82951.0,0.00033873]
[1742161132643,0.66984886,82952.0,82951.0,0.00033873]
[1742161132833,0.68490386,82952.0,82951.0,0.00033873]
[1742161133398,0.68090386,82952.0,82951.0,0.00033873]
[1742161133793,0.68390386,82952.0,82951.0,0.00033873]
[1742161133995,0.69617274,82952.0,82951.0,0.00033873]
[1742161135597,0.56037274,82952.0,82951.0,0.00033873]
[1742161136843,0.55737274,82952.0,82951.0,0.00033873]
[1742161137049,0.55937274,82952.0,82951.0,0.00033873]
[1742161137405,0.55637274,82952.0,82951.0,0.00033873]
[1742161137671,0.55837274,82952.0,82951.0,0.00033873]
[1742161138436,0.55637274,82952.0,82951.0,0.00033873]
[1742161138637,0.55837274,82952.0,82951.0,0.00033873]
[1742161139689,0.55837274,82952.0,82951.0,0.00050793]
[1742161143640,0.75125474,82952.0,82951.0,0.00050793]
[1742161144943,0.204966,82940.0,82934.0,0.012057]
[1742161145147,0.22987736,82939.0,82934.0,0.204979]
[1742161146010,0.22987736,82939.0,82935.0,0.204977]
[1742161147358,0.24193436,82939.0,82934.0,0.208979]
[1742161147553,0.22987736,82939.0,82934.0,0.208979]
[1742161147767,0.22987736,82939.0,82936.0,0.192919]
[1742161149105,0.22987736,82939.0,82938.0,0.012057]
[1742161149307,0.22588904,82939.0,82938.0,0.090457]
[1742161149600,0.22973889,82939.0,82938.0,0.140057]
[1742161149795,0.00384985,82939.0,82938.0,0.140057]
[1742161149996,0.0099745,82943.0,82938.0,0.140057]
[1742161149997,0.0099745,82943.0,82942.0,0.204961]
[1742161150203,9.422e-05,82952.0,82951.0,0.012055]
[1742161150398,9.422e-05,82952.0,82951.0,0.204939]
[1742161151857,0.00043282,82952.0,82951.0,0.204939]
[1742161152005,0.00243282,82952.0,82951.0,0.204939]
[1742161152202,0.00443282,82952.0,82951.0,0.283339]
[1742161153644,0.00443282,82952.0,82951.0,0.468299]
[1742161153861,0.00243282,82952.0,82951.0,1.968299]
[1742161154037,0.00243282,82952.0,82951.0,1.99292185]
[1742161154435,8.2e-07,82952.0,82951.0,1.99292185]
[1742161154849,0.22588904,82980.0,82978.0,0.20487]
[1742161155049,0.23590117,82980.0,82979.0,0.012051]
[1742161156553,9.3e-07,82980.0,82979.0,0.393351]
[1742161156751,9.3e-07,82980.0,82979.0,1.893351]
[1742161156959,9.3e-07,82980.0,82979.0,1.90789185]
[1742161157550,9.3e-07,82980.0,82979.0,1.90989185]
[1742161157983,9.3e-07,82980.0,82979.0,1.90789185]
[1742161158296,0.00100093,82980.0,82979.0,1.91389185]
[1742161158521,0.00100093,82980.0,82979.0,1.91089185]
[1742161159013,0.00100093,82980.0,82979.0,1.91689185]
[1742161159216,0.00100093,82980.0,82979.0,1.902351]
[1742161160636,0.00100093,82980.0,82979.0,1.91689185]
[1742161162798,0.00100093,82980.0,82979.0,0.321051]
[1742161162972,0.00100093,82980.0,82979.0,0.021051]
[1742161163572,9.3e-07,82980.0,82979.0,0.0182202]
[1742161163933,9.3e-07,82980.0,82979.0,0.0212202]
[1742161164341,9.3e-07,82980.0,82979.0,0.0182202]
[1742161164771,9.3e-07,82980.0,82979.0,0.0212202]
[1742161165181,9.3e-07,82980.0,82979.0,0.0152202]
[1742161165679,9.3e-07,82980.0,82979.0,0.0182202]
[1742161165882,9.3e-07,82980.0,82979.0,0.0152202]
[1742161166380,9.3e-07,82980.0,82979.0,0.0182202]
[1742161167868,9.3e-07,82980.0,82979.0,0.00416447]
[1742161168431,9.3e-07,82980.0,82979.0,0.01621547]
[1742161169280,9.3e-07,82980.0,82979.0,0.09872047]
[1742161169489,9.3e-07,82980.0,82979.0,0.14682047]
[1742161170318,9.3e-07,82980.0,82979.0,0.145656]
[1742161170715,9.3e-07,82980.0,82979.0,0.147656]
[1742161171547,9.3e-07,82980.0,82979.0,0.142656]
[1742161171960,9.3e-07,82980.0,82979.0,0.146656]
[1742161172278,9.3e-07,82980.0,82979.0,0.142656]
[1742161172481,9.3e-07,82980.0,82979.0,0.148656]
[1742161172894,0.00100093,82980.0,82979.0,0.17562787]
[1742161173467,0.00100093,82980.0,82979.0,0.17683269]
[1742161173874,0.00100093,82980.0,82979.0,0.17683266]
[1742161175612,0.00100093,82980.0,82979.0,0.17579707]
[1742161175812,0.00133933,82980.0,82979.0,0.17579707]
[1742161176042,0.00133933,82980.0,82979.0,0.17700186]
[1742161176856,0.00133933,82980.0,82979.0,1.67700186]
[1742161177062,0.00133933,82980.0,82979.0,1.67579707]
[1742161178281,0.00133933,82980.0,82979.0,1.97579707]
[1742161181597,0.00133933,82980.0,82979.0,2.10991295]
[1742161186111,0.00133933,82980.0,82979.0,2.11887018]
[1742161188383,0.00133933,82980.0,82979.0,1.98167707]
[1742161191577,0.02377782,82980.0,82979.0,1.98167707]
[1742161193575,0.0003384,82992.0,82979.0,1.98167707]
[1742161193576,0.0003384,82992.0,82991.0,0.20484]
[1742161193910,0.0003384,82992.0,82991.0,0.22058545]
[1742161194090,4e-07,82992.0,82991.0,0.22058545]
[1742161194287,4e-07,82992.0,82991.0,0.64016048]
[1742161194524,2e-07,82999.0,82998.0,0.012048]
[1742161194734,2e-07,82999.0,82998.0,0.16307335]
[1742161194879,2e-07,82999.0,82998.0,0.58164838]
[1742161195088,2e-07,82999.0,82998.0,0.58044388]
[1742161195291,2e-07,82999.0,82998.0,2.08044388]
[1742161195672,2e-07,82999.0,82998.0,2.08444388]
[1742161195869,2e-07,82999.0,82998.0,2.08944388]
[1742161196107,2e-07,82999.0,82998.0,2.08444388]
[1742161196303,0.0003382,83020.0,83019.0,0.204771]
[1742161196451,0.0003382,83020.0,83019.0,0.203771]
[1742161197121,0.0003382,83020.0,83019.0,1.703771]
[1742161197499,0.00046213,83020.0,83019.0,1.703771]
[1742161198338,0.00046213,83020.0,83019.0,1.708771]
[1742161200273,0.00046213,83020.0,83019.0,0.005]
[1742161200477,0.28647294,83020.0,83019.0,0.005]
[1742161200682,0.29858847,83020.0,83019.0,0.005]
[1742161201101,0.08170394,83020.0,83019.0,0.194726]
[1742161201318,0.08170394,83020.0,83019.0,0.002]
[1742161201519,0.08170394,83020.0,83014.0,0.192737]
[1742161201738,0.08170394,83020.0,83015.0,0.012046]
[1742161201943,0.08170394,83020.0,83016.0,0.204778]
[1742161202755,0.08170394,83020.0,83016.0,0.012045]
[1742161202968,0.08170394,83020.0,83016.0,0.204778]
[1742161203171,0.012045,83019.0,83014.0,0.204783]
[1742161203519,0.012045,83019.0,83012.0,0.204787]
[1742161203520,0.01670208,83018.0,83012.0,0.204787]
[1742161203702,0.00465708,83018.0,83014.0,0.192738]
[1742161203902,0.00465708,83018.0,83016.0,0.204778]
[1742161204126,0.07706213,83020.0,83016.0,0.204778]
[1742161204317,0.07706213,83020.0,83011.0,0.192744]
[1742161204318,0.012045,83016.0,83011.0,0.192744]
[1742161204517,0.012045,83016.0,83011.0,0.20479]
[1742161204743,0.192741,83013.0,83006.0,0.012047]
[1742161204916,0.012046,83015.0,83006.0,0.012047]
[1742161204917,0.0493,83012.0,83008.0,0.19275]
[1742161205239,0.00465708,83011.0,83008.0,0.19275]
[1742161205440,0.00465708,83011.0,83007.0,0.204799]
[1742161205707,0.00465708,83011.0,83008.0,0.012047]
[1742161207171,0.00465708,83011.0,83009.0,0.192748]
[1742161207343,0.00465708,83011.0,83006.0,0.206802]
[1742161207756,0.00465708,83011.0,83008.0,0.003]
[1742161207987,0.00465708,83011.0,83008.0,0.195752]
[1742161208176,0.00465708,83011.0,83008.0,0.198752]
[1742161208869,0.00465708,83011.0,83008.0,0.195752]